[Event "GCT Superbet Romania 2022"]
[Site "Bucharest"]
[Date "2022.05.07"]
[Round "3.2"]
[White "Nepomniachtchi, Ian"]
[Black "Dominguez Perez, Leinier"]
[Result "1/2-1/2"]
[ECO "C43"]
[WhiteElo "2773"]
[BlackElo "2753"]
[Annotator "TA"]
[PlyCount "100"]
[EventDate "2022.05.05"]
[EventType "tourn"]
[EventCountry "ROU"]
[SourceTitle "playchess.com"]
[Source "ChessBase"]
[SourceQuality "1"]
[TimeControl "40/5400+30:1800+30"]

{[%evp 16,100,17,0,0,0,12,1,11,6,4,5,6,2,12,0,14,14,17,17,20,24,19,25,36,20,18,10,12,19,17,15,16,12,13,0,12,12,12,13,13,13,13,13,14,17,25,32,62,66,56,56,52,74,52,0,0,0,0,0,0,0,0,0,0,0,0,0,0,0,0,0,0,0,0,0,0,0,0,0,0,0,0,0,0,0,0]} 1. e4 {[%emt 0:00:08]} e5 {[%emt 0:00:10]} 2. Nf3 {[%emt 0:00:06]} Nf6 {[%emt 0:00:06]} 3. d4 {[%emt 0:00:23]} Nxe4 {[%emt 0:00:10]} 4. Bd3 {[%emt 0:00:09]} d5 {[%emt 0:00:07]} 5. Nxe5 {[%emt 0:00:04]} Nd7 {[%emt 0:00:10]} 6. Nc3 {[%emt 0:00:13]} Nxc3 {[%emt 0:00:33]} 7. bxc3 {[%emt 0:00:11]} Bd6 {[%emt 0:00:10] seems to push 7...Nxe5 aside.} 8. O-O {[%emt 0:00:17]} O-O {[%emt 0:00:25]} 9. Re1 {[%emt 0:00:05]} c5 {[%emt 0:00:36] C43: Petroff Defence: 3 d4.} 10. Qf3 {[%emt 0:00:06]} c4 {[%emt 0:01:14]} 11. Bf5 {[%emt 0:00:12]} Nxe5 {[%emt 0:00:37]} 12. dxe5 {[%emt 0:00:05] And now Bxc8 would win.} Re8 {[%emt 0:00:29]} 13. Bxc8 {[%emt 0:00:29]} Rxc8 {[%emt 0:00:07] [#]} 14. Bg5 $1 {[%emt 0:00:04]} Be7 {[%emt 0:01:18] [#]} (14... Qxg5 15. exd6) 15. e6 $1 {[%emt 0:00:24] [#]} fxe6 $146 {[%emt 0:00:07] [#]} (15... f6 16. Be3) (15... f6 16. Bf4 Rc6 17. Rab1 b6 18. Rbd1 Bc5 19. Rxd5 Qc8 20. e7 Re6 21. Rdd1 g5) ({Predecessor:} 15... f6 16. Bf4 Rc6 17. Rab1 b6 18. Rbd1 Bc5 19. Rxd5 Qc8 20. e7 Re6 21. Rdd1 g5 {0-1 (51) Aguilar Medina,J (1688)-Gralke,W ICCF email 2020}) 16. Rxe6 $1 {[%emt 0:00:05] aiming for Rae1.} Bxg5 {[%emt 0:00:07]} 17. Rxe8+ {[%emt 0:00:03]} Qxe8 {[%emt 0:00:12]} 18. Qxd5+ {[%emt 0:00:02]} Kh8 {[%emt 0:00:09] Hoping for ...h6.} 19. Qxg5 $11 {[%emt 0:00:04][%mdl 4096] Endgame KQR-KQR} Qe2 {[%emt 0:00:19] Prevents Rd1.} 20. Qf5 {[%emt 0:03:15]} Rd8 {[%emt 0:01:17] ( -> ...Rd1+)} 21. h3 {[%emt 0:00:31]} h6 {[%emt 0:01:14]} 22. a4 {[%emt 0:00:41]} b6 {[%emt 0:25:57]} 23. Qg4 {[%emt 0:11:51]} Qxg4 {[%emt 0:39:36]} (23... Qxc2 {feels hotter.} 24. Qxc4 Rd2 25. Qf4 Qxc3 26. Re1 Rd8) 24. hxg4 {[%emt 0:01:14] KR-KR} Rd2 {[%emt 0:00:02]} 25. Rc1 {[%emt 0:00:11]} Kg8 {[%emt 0:05:40]} 26. Kf1 {[%emt 0:00:36]} Kf7 {[%emt 0:02:02]} 27. Ke1 {[%emt 0:00:36]} Rd5 {[%emt 0:00:03]} 28. Rb1 {[%emt 0:00:22]} Ke6 {[%emt 0:00:59]} 29. Rb4 {[%emt 0:00:42]} Re5+ {[%emt 0:11:10]} 30. Kd2 {[%emt 0:00:38]} Kd5 {[%emt 0:00:07]} 31. a5 {[%emt 0:11:16]} bxa5 {[%emt 0:01:41][%cal Bb6a5,Ba5a4,Ba4a3,Ba3a2][%mdl 32]} (31... Kc5) 32. Ra4 {[%emt 0:02:45]} Kc6 {[%emt 0:03:57]} 33. Rxc4+ {[%emt 0:00:44]} Rc5 {[%emt 0:01:04]} 34. Re4 {[%emt 0:01:00]} Kb5 {[%emt 0:01:30] Inhibits c4+.} 35. f4 {[%emt 0:00:23]} (35. Re7) (35. Re7 $14) 35... a4 {[%emt 0:02:16] The position is equal.} 36. Re7 {[%emt 0:00:46][%csl LRa7,LRg7]} a5 {[%emt 0:01:43]} 37. Rxg7 {[%emt 0:01:52] Rb7+ is the strong threat.} a3 {[%emt 0:00:06] Strongly threatening ...a2.} 38. Kc1 {[%emt 0:00:14]} Rxc3 {[%emt 0:01:19]} 39. g5 {[%emt 0:01:22]} a2 {[%emt 0:00:28]} 40. Kb2 {[%emt 0:00:00]} Rxc2+ {[%emt 0:00:00]} 41. Ka1 {[%emt 0:00:09]} hxg5 {[%emt 0:01:05]} 42. Rxg5+ {[%emt 0:00:23]} Kb4 {[%emt 0:00:11]} 43. Rg3 {[%emt 0:01:02]} Rf2 {[%emt 0:00:09]} 44. Rf3 {[%emt 0:00:03]} Rxf3 {[%emt 0:00:10]} 45. gxf3 {[%emt 0:00:03]} Kc5 {[%emt 0:00:06]} 46. Kxa2 {[%emt 0:00:02] KPP-KP} Kd5 {[%emt 0:00:06]} 47. Ka3 {[%emt 0:00:02]} Ke6 {[%emt 0:00:07]} 48. Ka4 {[%emt 0:00:01]} Kf5 {[%emt 0:00:06]} 49. Kxa5 {[%emt 0:00:03]} Kxf4 {[%emt 0:00:06]} 50. Kb4 {[%emt 0:00:06]} Kxf3 {[%emt 0:00:02] Weighted Error Value: White=0.04 (flawless) /Black=0.02 (flawless)} 1/2-1/2

[Event "GCT Superbet Romania 2022"]
[Site "Bucharest"]
[Date "2022.05.07"]
[Round "3.3"]
[White "Rapport, Richard"]
[Black "Deac, Bogdan-Daniel"]
[Result "0-1"]
[ECO "E46"]
[WhiteElo "2776"]
[BlackElo "2671"]
[Annotator "TA"]
[PlyCount "104"]
[EventDate "2022.05.05"]
[EventType "tourn"]
[EventCountry "ROU"]
[SourceTitle "playchess.com"]
[Source "ChessBase"]
[SourceQuality "1"]
[TimeControl "40/5400+30:1800+30"]

{[%evp 9,104,2,-3,5,0,-3,0,0,3,4,16,16,14,4,25,7,0,-48,-58,-51,0,0,0,8,14,9,7,0,2,6,10,6,8,12,135,131,131,131,128,113,169,0,0,0,0,0,0,0,0,0,0,0,0,0,0,0,0,0,0,0,0,0,0,0,0,0,0,0,0,0,0,-492,-471,-502,-475,-493,-493,-482,-453,-410,-404,-670,-650,-623,-623,-4168,-4168,-1849,-1447,-3795,-3192,-29968,-29967,-11527,-222,-6295,-4626]} 1. d4 {[%emt 0:00:03]} Nf6 {[%emt 0:00:02]} 2. c4 {[%emt 0:01:21]} e6 {[%emt 0:00:37]} 3. Nc3 {[%emt 0:00:46]} Bb4 {[%emt 0:00:08]} 4. e3 {[%emt 0:00:12]} O-O {[%emt 0:00:37]} 5. Nge2 {[%emt 0:00:13]} c6 {[%emt 0:00:53]} 6. a3 {[%emt 0:00:53] E46: Nimzo-Indian: Rubinstein: 4 e3 0-0 5 Ne2 without early Bd3.} Ba5 {[%emt 0:00:22]} 7. c5 {[%emt 0:00:39]} d5 {[%emt 0:02:00]} 8. cxd6 {[%emt 0:01:55] The position is equal.} Qxd6 {[%emt 0:00:28]} 9. b4 {[%emt 0:00:38]} Bb6 $5 {[%emt 0:08:07][%mdl 4] A promising side line.} 10. Bb2 {[%emt 0:05:19]} Nbd7 {[%emt 0:07:46] [#]} 11. Ng3 $146 {[%emt 0:02:42]} (11. g3 a5 12. b5 c5 13. Na4 cxd4 14. Nxd4 Nc5 15. Nxc5 Bxc5 16. Nb3 Qxd1+ 17. Rxd1) ({Predecessor:} 11. g3 a5 12. b5 c5 13. Na4 cxd4 14. Nxd4 Nc5 15. Nxc5 Bxc5 16. Nb3 Qxd1+ 17. Rxd1 {1-0 (34) Gupta,A (2617)-Deac,B (2578) Budapest 2018}) 11... Rd8 {[%emt 0:07:00]} 12. Bc4 {[%emt 0:11:52]} e5 {[%emt 0:16:34][%cal Re5d4]} 13. Qb3 {[%emt 0:33:44]} (13. Na4) (13. Nce2 $11 {might be stronger.}) 13... exd4 $15 {[%emt 0:15:16]} 14. Bxf7+ {[%emt 0:03:03]} Kh8 {[%emt 0:12:36]} (14... Kf8 15. Nce4 Qe7) ({Black should try} 14... Kf8 $1 $15 15. Nce4 Qe7) 15. exd4 $1 $11 {[%emt 0:01:08]} Bxd4 {[%emt 0:05:52] aiming for ...Qe7+.} 16. O-O-O {[%emt 0:05:30]} Ne5 {[%emt 0:02:04]} 17. Nce4 $1 {[%emt 0:01:02]} Bxb2+ {[%emt 0:10:45]} (17... Nxe4 18. Bxd4 (18. Rxd4 Qh6+ 19. Qe3 Qxe3+ 20. fxe3 Rxd4) 18... Nxf7 19. Qxf7 Qh6+ 20. Be3) ({Resist} 17... Nxe4 18. Bxd4 (18. Rxd4 $2 Qh6+ 19. Qe3 Qxe3+ 20. fxe3 Rxd4 $19) 18... Bg4 19. Nxe4 $16) 18. Qxb2 {[%emt 0:00:55]} Nd3+ {[%emt 0:00:37] [#]} 19. Rxd3 $1 {[%emt 0:00:36]} Qxd3 {[%emt 0:00:09]} 20. Nxf6 {[%emt 0:00:09][%cal Oh1e1] Pair of Knights!} Qd6 $1 {[%emt 0:02:47]} 21. Nfh5 {[%emt 0:01:51][%csl Gh5][%cal Rb2g7] Inhibits Qf4+.} Qh6+ {[%emt 0:00:15]} (21... Qf8 22. Bb3 Bg4) (21... Qf8 $1 $11 {remains equal.} 22. Bb3 c5) 22. f4 $1 $16 {[%emt 0:05:34]} Bg4 {[%emt 0:00:39] [#]} 23. Qe5 $1 {[%emt 0:00:42]} a5 {[%emt 0:01:05]} 24. bxa5 {[%emt 0:02:32] Re1 is the strong threat.} Rd7 {[%emt 0:02:25] [#]} (24... Rf8) (24... Rf8 $16) 25. Be8 $2 {[%emt 0:03:08]} (25. Bb3) (25. Bb3 $1 $18) 25... Rdd8 $1 $36 {[%emt 0:00:17][%mdl 2048] Black has good play.} (25... Rd5 26. Qe7 g5 27. Nf6 Rdxa5 28. Nxg4) (25... Rd5 $2 26. Qe7 g5 27. Nf6 Rc5+ 28. Qxc5 $18) 26. Re1 {[%emt 0:00:51][%cal Oe5e7] Strongly threatening Qe7!} Kg8 $1 {[%emt 0:00:38]} 27. Nf5 {[%emt 0:09:03]} Bxf5 {[%emt 0:00:09] Chess con chili.} 28. Bf7+ {[%emt 0:00:03][%mdl 64] Decoy} Kxf7 {[%emt 0:01:09]} 29. Qxf5+ {[%emt 0:00:11]} Kg8 {[%emt 0:00:02]} 30. Re7 {[%emt 0:00:50][%csl LRb7,LRg7] Hoping for Qe5.} Rf8 {[%emt 0:03:21]} 31. Qe5 {[%emt 0:01:02][%cal Re7g7]} Rf7 {[%emt 0:00:24] And now ...Rxe7 would win.} 32. Re6 {[%emt 0:00:25]} (32. Rxf7 Kxf7 33. Qc7+ Kg8 34. Qxb7 Re8) ({Reject} 32. Rxf7 Kxf7 33. Qc7+ Kg8 34. Qxb7 Re8 $17) 32... g6 {[%emt 0:00:18]} 33. Nf6+ {[%emt 0:00:58]} Kh8 {[%emt 0:01:05]} 34. g4 {[%emt 0:03:41]} Qxh2 {[%emt 0:00:31]} 35. Rd6 {[%emt 0:02:11]} Qh1+ {[%emt 0:00:28]} 36. Kc2 {[%emt 0:00:24]} Qg2+ {[%emt 0:00:23]} 37. Rd2 {[%emt 0:00:16]} Qh3 {[%emt 0:00:34]} 38. Kb2 {[%emt 0:01:14]} Qf1 {[%emt 0:00:34] Threatens to win with ...Qb5+.} 39. Nxh7+ {[%emt 0:01:18]} Kg8 $1 {[%emt 0:00:10]} 40. Ng5 $2 {[%emt 0:00:00][%mdl 8192]} (40. Nf6+ Rxf6 41. Qxf6 Qb5+ 42. Kc2 (42. Ka1 Qf1+ 43. Ka2 Qc4+ 44. Kb2 Qb5+ 45. Ka2 Qc4+ 46. Kb2 Qb5+) 42... Qc4+ 43. Qc3 Qxc3+ 44. Kxc3) (40. Nf6+ $11 {and White stays safe.} Rxf6 41. Qxf6 Qb5+ 42. Kc2 (42. Ka1 Qf1+ 43. Ka2 Qc4+ 44. Kb2 Qb5+ 45. Ka2 Qc4+ 46. Kb2 Qb5+ $11) 42... Qc4+ 43. Qc3 Qxc3+ 44. Kxc3) 40... Qxf4 $19 {[%emt 0:00:00]} 41. Qxf4 {[%emt 0:04:10]} Rxf4 {[%emt 0:00:40][%mdl 4096] Endgame KRR-KRN} 42. Rd6 {[%emt 0:00:08]} Rxa5 {[%emt 0:06:59]} 43. Rxg6+ {[%emt 0:00:52]} Kh8 {[%emt 0:00:11]} 44. Ne6 {[%emt 0:05:22]} Rf3 {[%emt 0:02:27]} 45. g5 {[%emt 0:05:17]} (45. Nd4 Rfxa3 46. Rh6+ Kg7 47. Rd6) (45. Nd4 $142 Rfxa3 46. Rh6+ Kg7 47. Rd6) 45... Raxa3 {[%emt 0:05:30] White must now prevent ...Rae3.} 46. Nd4 {[%emt 0:02:15]} Rh3 {[%emt 0:00:43]} 47. Rd6 {[%emt 0:00:48]} Rag3 {[%emt 0:00:29]} 48. Rd8+ {[%emt 0:00:33]} Kh7 {[%emt 0:00:05]} 49. Rd7+ {[%emt 0:00:04]} Kg6 {[%emt 0:00:04]} 50. Rxb7 {[%emt 0:00:05]} Rg2+ {[%emt 0:00:15]} 51. Ka1 {[%emt 0:00:04]} Ra3+ {[%emt 0:00:06]} 52. Kb1 {[%emt 0:00:08]} Rd3 {[%emt 0:00:03] Weighted Error Value: White=0.61/Black=0.06 (flawless)} 0-1

[Event "GCT Superbet Romania 2022"]
[Site "Bucharest"]
[Date "2022.05.07"]
[Round "3.4"]
[White "Aronian, Levon"]
[Black "Firouzja, Alireza"]
[Result "1/2-1/2"]
[ECO "D17"]
[WhiteElo "2765"]
[BlackElo "2804"]
[Annotator "TA"]
[PlyCount "124"]
[EventDate "2022.05.05"]
[EventType "tourn"]
[EventCountry "ROU"]
[SourceTitle "playchess.com"]
[Source "ChessBase"]
[SourceQuality "1"]
[TimeControl "40/5400+30:1800+30"]

{[%evp 20,123,22,-3,40,25,35,22,36,33,37,37,42,39,49,42,51,33,40,-35,-40,-31,-28,-16,-41,-71,-68,-64,-65,-91,-90,-85,-83,-88,-74,-78,-87,-77,-72,-125,-150,-133,-128,-146,-152,-179,-192,-226,-224,-247,-239,-404,-408,-374,-266,-265,-262,-1522,-1202,-1368,-1372,-1381,-1224,-731,0,0,0,0,0,0,0,0,0,0,0,0,0,0,0,0,0,0,0,0,0,0,0,0,0,0,0,0,0,0,0,0,0,0,0,0,0,0,0,0,0,0]} 1. c4 {[%emt 0:00:26]} c6 {[%emt 0:00:14]} 2. Nf3 {[%emt 0:04:48][%cal Bg1f3,Bf3e5,Be5c4,Bc4e3,Be3f5][%mdl 32]} d5 {[%emt 0:00:07]} 3. d4 {[%emt 0:00:10]} Nf6 {[%emt 0:00:07]} 4. Nc3 {[%emt 0:00:17]} dxc4 {[%emt 0:00:09]} 5. a4 {[%emt 0:00:05]} Bf5 {[%emt 0:00:08]} 6. Ne5 {[%emt 0:00:04]} Nbd7 {[%emt 0:00:08]} 7. Nxc4 {[%emt 0:00:06]} Qc7 {[%emt 0:00:09]} 8. g3 {[%emt 0:00:51]} e5 {[%emt 0:00:08]} 9. dxe5 {[%emt 0:00:06]} Nxe5 {[%emt 0:00:05]} 10. Bf4 {[%emt 0:00:03]} Nfd7 {[%emt 0:00:07]} 11. Bg2 {[%emt 0:00:47]} g5 $1 {[%emt 0:00:12] 11...g5 is better than 11...f6. D17: Slav Defence: 5 a4 Bf5: Lines with 6 Nh4 and 6 Ne5.} 12. Ne3 {[%emt 0:00:28]} gxf4 {[%emt 0:00:17]} 13. Nxf5 {[%emt 0:00:03]} O-O-O {[%emt 0:00:44][%cal Of4f3]} (13... Qb6 14. gxf4 Ng6 15. e3) ({Much less strong is} 13... Qb6 14. gxf4 Rg8 15. O-O $16) 14. Qc2 {[%emt 0:00:12]} (14. gxf4 Nc5 15. Qc2 Nc4) ({Don't play} 14. gxf4 Nc5 15. Qc2 Nc4 $15) 14... Kb8 {[%emt 0:01:33]} 15. gxf4 {[%emt 0:09:16]} Nc4 {[%emt 0:00:17]} 16. e3 {[%emt 0:00:04]} Nc5 $1 {[%emt 0:00:57][%cal Bd7c5,Bc5a4,Ba4b2][%mdl 32]} 17. Rd1 {[%emt 0:00:05] Against Rd2} Rxd1+ $1 {[%emt 0:00:26]} 18. Nxd1 {[%emt 0:04:54]} Qa5+ $1 {[%emt 0:00:26] [#]} 19. Ke2 $146 {[%emt 0:00:19]} (19. Nc3) (19. Nc3 Qb6 20. O-O Qxb2 21. Qxb2 Nxb2 22. Rb1 Ncd3 23. Be4 Kc7 24. Kf1 a5 25. Bxd3 Nxd3) (19. Nc3 $1 $14) ({Predecessor:} 19. Nc3 Qb6 20. O-O Qxb2 21. Qxb2 Nxb2 22. Rb1 Ncd3 23. Be4 Kc7 24. Kf1 a5 25. Bxd3 Nxd3 {½-½ (50) Wang,H (2726)-Nakamura,H (2778) Istanbul 2012}) 19... Qa6 $15 {[%emt 0:22:12]} 20. Kf3 $1 {[%emt 0:03:14]} Qxa4 {[%emt 0:09:03]} 21. Qxa4 {[%emt 1:02:37]} Nxa4 {[%emt 0:00:30]} 22. Ke2 {[%emt 0:05:23]} (22. Nd4) 22... Ncxb2 {[%emt 0:02:27]} 23. Nxb2 {[%emt 0:00:06]} Nxb2 {[%emt 0:00:04]} 24. Rb1 {[%emt 0:00:41]} Na4 {[%emt 0:02:00] [#] aiming for ...Nc3+.} 25. Kd2 {[%emt 0:00:14] Inhibits Nc3.} Nb6 {[%emt 0:01:36]} 26. Bf3 {[%emt 0:01:22]} Bc5 {[%emt 0:06:39]} 27. Nh6 {[%emt 0:00:48]} f6 {[%emt 0:02:37][%cal Bf7f6,Bf6f5,Bf5e4][%mdl 32]} 28. Rg1 {[%emt 0:00:04]} a5 {[%emt 0:19:16][%cal Ba7a5,Ba5a4][%mdl 32]} 29. Rg8+ {[%emt 0:00:32]} (29. Be4 $142) 29... Rxg8 $17 {[%emt 0:00:04]} 30. Nxg8 {[%emt 0:00:04][%mdl 4096] Endgame KBN-KBN} f5 {[%emt 0:02:59]} 31. Kc2 {[%emt 0:02:41]} a4 {[%emt 0:01:35]} 32. Nh6 {[%emt 0:00:15]} Nc4 {[%emt 0:07:27]} 33. Be2 {[%emt 0:00:41]} Nd6 {[%emt 0:00:16]} 34. Bd3 {[%emt 0:00:32]} Ne4 {[%emt 0:01:25]} 35. Bxe4 $2 {[%emt 0:01:14]} (35. Nxf5 Nxf2 36. Bf1) (35. Nf7 {was necessary.}) 35... fxe4 $19 {[%emt 0:00:06] KB-KN} 36. Ng8 {[%emt 0:00:02]} b5 {[%emt 0:05:02][%cal Bb7b5,Bb5b4,Bb4b3][%mdl 32]} 37. Nf6 {[%emt 0:00:05]} Kc7 {[%emt 0:02:53] Prevents Nd7. White must now prevent ...b4.} 38. Nxh7 $2 {[%emt 0:00:23]} (38. f5) (38. Nxe4 Bd6 39. Nf6) 38... b4 {[%emt 0:01:07]} 39. Ng5 {[%emt 0:01:08]} b3+ {[%emt 0:10:27]} 40. Kb2 {[%emt 0:00:00]} Bb4 {[%emt 0:00:00] [#] Threatens to win with ...c5.} 41. Nxe4 {[%emt 0:05:33]} c5 $2 {[%emt 0:14:16]} (41... Kb6 42. f5 Bf8) (41... Kb6 $19 42. f5 Bf8) 42. Nc3 $1 $11 {[%emt 0:00:07] The position is equal.} Bxc3+ {[%emt 0:00:43]} 43. Kxc3 {[%emt 0:00:04] Strongly threatening h4. KP-KP} c4 {[%emt 0:00:30]} 44. Kb2 {[%emt 0:00:02]} Kd6 {[%emt 0:01:04]} 45. f5 $1 {[%emt 0:00:05]} Ke5 {[%emt 0:01:22]} 46. f3 $1 {[%emt 0:00:23][%cal Bf2f3,Bf3f4][%mdl 32]} Kxf5 {[%emt 0:05:24] K3P-K3P} 47. h4 {[%emt 0:00:03]} Ke5 {[%emt 0:02:11]} (47... Kf6 48. f4 Kf5) 48. h5 {[%emt 0:00:29]} Kf5 {[%emt 0:00:52]} 49. f4 {[%emt 0:00:06]} Ke4 $1 {[%emt 0:00:20]} 50. h6 {[%emt 0:00:05]} Kd3 {[%emt 0:00:12]} 51. h7 {[%emt 0:00:04]} c3+ {[%emt 0:00:08]} 52. Ka3 $1 {[%emt 0:00:05]} (52. Kb1 Kd2 53. h8=Q c2+ 54. Kb2 c1=Q#) (52. Kb1 $2 Kd2 53. h8=Q c2+ 54. Kb2 c1=Q#) 52... c2 {[%emt 0:00:11]} 53. h8=Q $1 {[%emt 0:00:09] White wants to mate with Qd4+.} (53. Kb2 Kd2 54. Ka3 c1=Q+ 55. Kxa4 b2 56. h8=Q Qa1+ 57. Kb4 b1=Q+) (53. Kb2 {leads to mate.} Kd2 54. Ka3 c1=Q+ 55. Kxa4 b2 56. h8=Q Qa1+ 57. Kb4 b1=Q+) 53... c1=Q+ {[%emt 0:00:19]} 54. Kxa4 {[%emt 0:00:35] Qd4+ is the strong threat. KQ-KQ} b2 {[%emt 0:05:55]} (54... Qc3 55. Qh7+ Ke2) (54... Qc3 $5 55. Qh7+ Kxe3 $11) 55. Qh7+ {[%emt 0:00:10]} Kxe3 {[%emt 0:03:45]} (55... Kd2 56. Qh2+ Ke1 57. Qg3+ Kd2 58. Qh2+ Kxe3 59. Qh3+ Kd4 60. Qd7+ Ke4 61. Qh7+ Kxf4 62. Qh6+ Kg3 63. Qg6+ Kh4 64. Qe4+ Kh5 65. Qe8+ Kh6 66. Qe6+ Kg7 67. Qe7+ Kg8 68. Qe8+ Kh7 69. Qf7+ Kh8 70. Qe8+ Kh7 71. Qf7+ Kh8 72. Qe8+ Kh7) (55... Kd2 $5 56. Qh2+ Ke1 57. Qh1+ Kf2 58. Qh4+ Kxe3 59. Qg3+ Kd2 60. Qg2+ Kd3 61. Qg6+ Ke3 62. Qb6+ Kxf4 63. Qh6+ Kg4 64. Qe6+ Kf3 65. Qh3+ Ke4 66. Qh7+ Ke5 67. Qh8+ Ke6 68. Qg8+ Ke7 69. Qg7+ Kd8 70. Qd4+ Kc8 71. Qh8+ Kd7 72. Qd4+ Ke6 73. Qg4+ Kf6 74. Qh4+ Qg5 75. Qf2+ Kg6 76. Qxb2 Qf6 77. Qxf6+ Kxf6 $11) 56. Qh3+ $1 {[%emt 0:00:05]} Kxf4 {[%emt 0:00:38]} 57. Qh4+ {[%emt 0:00:26]} Kf5 {[%emt 0:00:10]} 58. Qh3+ {[%emt 0:00:06]} Ke5 {[%emt 0:00:57] ( -> ...Qa1+)} 59. Qh5+ {[%emt 0:00:23]} Kd6 {[%emt 0:00:20]} 60. Qg6+ {[%emt 0:00:28]} Kc7 {[%emt 0:00:39]} 61. Qg7+ {[%emt 0:00:37]} Kb6 {[%emt 0:00:41]} 62. Qxb2+ {[%emt 0:00:15]} Qxb2 {[%emt 0:04:54] Black had all chances to win.  Weighted Error Value: White=0.28 (precise) /Black=0.10 (very precise)} 1/2-1/2

[Event "GCT Superbet Romania 2022"]
[Site "Bucharest"]
[Date "2022.05.07"]
[Round "3.5"]
[White "Vachier-Lagrave, Maxime"]
[Black "Mamedyarov, Shakhriyar"]
[Result "1/2-1/2"]
[ECO "B11"]
[WhiteElo "2750"]
[BlackElo "2770"]
[Annotator "TA RC"]
[PlyCount "40"]
[EventDate "2022.05.05"]
[EventType "tourn"]
[EventCountry "ROU"]
[SourceTitle "playchess.com"]
[Source "ChessBase"]
[SourceQuality "1"]
[TimeControl "40/5400+30:1800+30"]

{[%evp 10,40,21,19,29,9,22,0,6,10,16,11,14,0,0,0,8,0,0,0,0,-20,-20,-13,0,0,0,-18,0,0,0,-8,0]} 1. e4 {[%emt 0:00:04]} c6 {[%emt 0:00:04]} 2. Nf3 {[%emt 0:02:29]} d5 {[%emt 0:01:53]} 3. Nc3 {[%emt 0:00:51]} dxe4 {[%emt 0:00:07]} 4. Nxe4 {[%emt 0:00:03]} Nf6 {[%emt 0:00:05]} 5. Qe2 {[%emt 0:00:14]} Nxe4 {[%emt 0:00:07]} 6. Qxe4 {[%emt 0:00:06]} Qa5 {[%emt 0:00:04] B11: Caro-Kann: Two Knights Variation.} 7. c3 {[%emt 0:05:16]} Bf5 {[%emt 0:00:29] The position is equal.} 8. Qh4 {[%emt 0:00:10] [#]} Nd7 $146 {[%emt 0:09:34]} ({Predecessor:} 8... e6 9. d4 Be7 10. Qg3 Bf6 11. Bf4 Nd7 12. Ne5 Bxe5 13. Bxe5 Nxe5 14. dxe5 O-O {0-1 (51) Nilsen,T (2169)-Amburgy,R (1989) Chess.com INT 2021}) 9. d4 {[%emt 0:00:17]} e6 {[%emt 0:04:33]} 10. Nd2 {[%emt 0:04:58]} c5 {[%emt 0:11:58]} 11. dxc5 {[%emt 0:09:57]} Qxc5 {[%emt 0:05:28]} 12. Be2 {[%emt 0:05:15]} Be7 {[%emt 0:01:27]} 13. Qg3 {[%emt 0:00:41]} O-O {[%emt 0:03:22]} 14. Nb3 {[%emt 0:01:34]} Qe5 {[%emt 0:05:36]} 15. Bf4 {[%emt 0:11:16]} Qe4 {[%emt 0:04:34]} 16. Qf3 {[%emt 0:05:37]} Qc2 {[%emt 0:06:14]} 17. Bd1 {[%emt 0:01:29]} Qe4+ {[%emt 0:00:55]} (17... Qxb2 $2 18. Bc1 Be4 19. Bxb2 $18) 18. Be2 {[%emt 0:01:27]} Qc2 {[%emt 0:00:58]} 19. Bd1 {[%emt 0:03:04]} Qe4+ {[%emt 0:00:06]} (19... Qxb2 $2 20. Bc1 Be4 21. Bxb2 $18) 20. Be2 {[%emt 0:00:06]} Qc2 {[%emt 0:42:56] A balanced but interesting game.  Weighted Error Value: White=0.04 (flawless) /Black=0.04 (flawless)} 1/2-1/2